[Event "Open Cappelle-la-Grande"]
[Date "2025.02.15"]
[White "Aumont, Alexandre"]
[Black "Karthik Venkataraman"]
[WhiteElo "2190"]
[BlackElo "2600"]
[Round "1.1.1"]
[Result "0-1"]
[TimeControl "40/5400+30:1800+30"]

1. e4 {[%clk 1:30:53]} 1... c5 {[%clk 1:30:35]} 2. Nc3 {[%clk 1:31:19]} 2... Nc6
{[%clk 1:30:50]} 3. g3 {[%clk 1:31:42]} 3... g6 {[%clk 1:31:12]} 4. Bg2 {[%clk
1:32:07]} 4... Bg7 {[%clk 1:31:39]} 5. d3 {[%clk 1:32:29]} 5... Rb8 {[%clk
1:31:21]} 6. Be3 {[%clk 1:32:38]} 6... d6 {[%clk 1:31:40]} 7. Qd2 {[%clk
1:32:57]} 7... b5 {[%clk 1:31:33]} 8. Nge2 {[%clk 1:33:13]} 8... Nd4 {[%clk
1:27:35]} 9. O-O {[%clk 1:32:14]} 9... h5 {[%clk 1:27:28]} 10. Nd1 {[%clk
1:12:13]} 10... h4 {[%clk 1:27:06]} 11. c3 {[%clk 1:12:05]} 11... Nxe2+ {[%clk
1:22:59]} 12. Qxe2 {[%clk 1:12:27]} 12... Be6 {[%clk 1:20:29]} 13. f4 {[%clk
1:09:12]} 13... hxg3 {[%clk 1:20:46]} 14. hxg3 {[%clk 1:09:32]} 14... Qd7 {[%clk
1:20:27]} 15. Nf2 {[%clk 1:09:00]} 15... Nf6 {[%clk 1:20:49]} 16. Rfe1 {[%clk
1:07:12]} 16... Ng4 {[%clk 1:11:49]} 17. f5 {[%clk 0:42:14]} 17... gxf5 {[%clk
1:11:59]} 18. exf5 {[%clk 0:42:16]} 18... Bxf5 {[%clk 1:12:23]} 19. Bxc5 {[%clk
0:41:56]} 19... O-O {[%clk 1:10:38]} 20. Be3 {[%clk 0:40:12]} 20... b4 {[%clk
1:08:54]} 21. Bd2 {[%clk 0:30:42]} 21... Nxf2 {[%clk 1:06:52]} 22. Kxf2 {[%clk
0:29:46]} 22... Bg6 {[%clk 1:02:22]} 23. Kg1 {[%clk 0:27:24]} 23... bxc3 {[%clk
1:02:17]} 24. Bxc3 {[%clk 0:27:36]} 24... e5 {[%clk 1:02:42]} 25. Be4 {[%clk
0:20:20]} 25... f5 {[%clk 1:01:55]} 26. Bd5+ {[%clk 0:20:44]} 26... Bf7 {[%clk
1:02:21]} 27. Qf3 {[%clk 0:19:26]} 27... Qb5 {[%clk 1:02:14]} 28. Bxf7+ {[%clk
0:18:52]} 28... Rxf7 {[%clk 1:02:42]} 29. a4 {[%clk 0:15:12]} 29... Qb3 {[%clk
1:01:04]} 30. Qc6 {[%clk 0:14:20]} 30... Qe6 {[%clk 0:56:11]} 31. Re2 {[%clk
0:13:25]} 31... f4 {[%clk 0:51:16]} 32. gxf4 {[%clk 0:10:20]} 32... Rxf4 {[%clk
0:51:31]} 33. Rg2 {[%clk 0:08:43]} 33... Rbf8 {[%clk 0:51:40]} 34. Qb7 {[%clk
0:06:55]} 34... R8f7 {[%clk 0:43:52]} 35. Qa8+ {[%clk 0:07:17]} 35... Kh7 {[%clk
0:44:20]} 36. Re1 {[%clk 0:01:25]} 36... Qh3 {[%clk 0:40:25]} 37. Qd5 {[%clk
0:01:18]} 37... R7f6 {[%clk 0:40:46]} 38. Bd2 {[%clk 0:01:01]} 38... Rh4 {[%clk
0:40:51]} 39. Rf2 {[%clk 0:00:35]} 39... Rg4+ {[%clk 0:40:45]} 40. Rg2 {[%clk
0:00:52]} 40... Rxg2+ {[%clk 0:41:08]} 0-1

[Variant "Standard"]
[Site "Europe Echecs"]

[Event "Open Cappelle-la-Grande"]
[Date "2025.02.15"]
[White "Pranesh M"]
[Black "Medghoul, Sherif"]
[WhiteElo "2586"]
[BlackElo "2185"]
[Round "1.1.2"]
[Result "1-0"]
[TimeControl "40/5400+30:1800+30"]

1. e4 {[%clk 1:30:19]} 1... e6 {[%clk 1:29:05]} 2. d4 {[%clk 1:30:35]} 2... d5
{[%clk 1:29:28]} 3. Nc3 {[%clk 1:30:54]} 3... Nf6 {[%clk 1:29:49]} 4. Bg5 {[%clk
1:30:44]} 4... Bb4 {[%clk 1:30:01]} 5. e5 {[%clk 1:30:58]} 5... h6 {[%clk
1:30:24]} 6. Bd2 {[%clk 1:31:18]} 6... Bxc3 {[%clk 1:30:46]} 7. bxc3 {[%clk
1:31:44]} 7... Ne4 {[%clk 1:31:09]} 8. Bc1 {[%clk 1:32:06]} 8... c5 {[%clk
1:29:32]} 9. Ne2 {[%clk 1:32:04]} 9... Qh4 {[%clk 1:12:37]} 10. g3 {[%clk
1:28:40]} 10... Qh5 {[%clk 1:11:29]} 11. Bg2 {[%clk 1:24:21]} 11... Qf5 {[%clk
1:00:05]} 12. f3 {[%clk 1:23:15]} 12... Ng5 {[%clk 0:59:23]} 13. g4 {[%clk
1:22:33]} 13... Nxf3+ {[%clk 0:57:31]} 14. Kf2 {[%clk 1:22:36]} 14... Qxg4
{[%clk 0:57:24]} 15. Bxf3 {[%clk 1:22:57]} 15... Qh4+ {[%clk 0:57:04]} 16. Kg2
{[%clk 1:23:21]} 16... b6 {[%clk 0:56:46]} 17. c4 {[%clk 1:22:10]} 17... Nc6
{[%clk 0:55:58]} 18. Qe1 {[%clk 1:20:38]} 18... Qd8 {[%clk 0:53:51]} 19. c3
{[%clk 1:16:46]} 19... Ne7 {[%clk 0:46:31]} 20. cxd5 {[%clk 1:07:42]} 20... exd5
{[%clk 0:44:32]} 21. Nf4 {[%clk 1:05:24]} 21... Nf5 {[%clk 0:22:19]} 22. Bxd5
{[%clk 1:01:22]} 22... Ba6 {[%clk 0:10:47]} 23. Qe4 {[%clk 0:59:16]} 23... Qg5+
{[%clk 0:09:04]} 24. Kf3 {[%clk 0:59:37]} 24... O-O-O {[%clk 0:07:37]} 25. Bxf7
{[%clk 0:55:21]} 25... Nh4+ {[%clk 0:03:53]} 26. Kf2 {[%clk 0:55:08]} 26... Bb7
{[%clk 0:02:54]} 27. d5 {[%clk 0:54:28]} 27... Rhf8 {[%clk 0:02:27]} 28. e6
{[%clk 0:51:59]} 28... Nf5 {[%clk 0:01:16]} 29. Ng6 {[%clk 0:48:58]} 29... Qf6
{[%clk 0:01:23]} 30. Bf4 {[%clk 0:46:31]} 30... Bxd5 {[%clk 0:00:50]} 31. Qxf5
{[%clk 0:46:22]} 31... Qxc3 {[%clk 0:00:38]} 32. e7+ {[%clk 0:46:30]} 32... Kb7
{[%clk 0:00:56]} 33. Bxd5+ {[%clk 0:46:53]} 1-0

[Variant "Standard"]
[Site "Europe Echecs"]

[Event "Open Cappelle-la-Grande"]
[Date "2025.02.15"]
[White "Robert, Yoann"]
[Black "Laurent-Paoli, Pierre"]
[WhiteElo "2181"]
[BlackElo "2565"]
[Round "1.1.3"]
[Result "0-1"]
[TimeControl "40/5400+30:1800+30"]

1. f4 {[%clk 1:27:22]} 1... d5 {[%clk 1:23:15]} 2. Nf3 {[%clk 1:27:28]} 2... Bf5
{[%clk 1:23:02]} 3. e3 {[%clk 1:26:03]} 3... e6 {[%clk 1:19:31]} 4. Nc3 {[%clk
1:25:34]} 4... Nf6 {[%clk 1:16:37]} 5. b3 {[%clk 1:24:00]} 5... Be7 {[%clk
1:11:22]} 6. Bb2 {[%clk 1:23:25]} 6... O-O {[%clk 1:09:23]} 7. Bd3 {[%clk
1:23:42]} 7... c5 {[%clk 1:08:06]} 8. Bxf5 {[%clk 1:19:19]} 8... exf5 {[%clk
1:08:28]} 9. Ne2 {[%clk 1:15:29]} 9... Nc6 {[%clk 1:08:01]} 10. Ne5 {[%clk
1:07:40]} 10... Rc8 {[%clk 1:04:55]} 11. Ng3 {[%clk 1:01:59]} 11... g6 {[%clk
1:04:32]} 12. O-O {[%clk 0:50:54]} 12... d4 {[%clk 1:02:55]} 13. Qe2 {[%clk
0:49:28]} 13... Re8 {[%clk 0:54:54]} 14. Qb5 {[%clk 0:41:41]} 14... dxe3 {[%clk
0:37:18]} 15. Qxb7 {[%clk 0:33:27]} 15... Na5 {[%clk 0:27:46]} 16. Qa6 {[%clk
0:33:16]} 16... Qxd2 {[%clk 0:26:01]} 17. Nf3 {[%clk 0:33:15]} 17... Qd8 {[%clk
0:25:31]} 18. Rfe1 {[%clk 0:23:49]} 18... Qb6 {[%clk 0:23:37]} 19. Qxb6 {[%clk
0:22:46]} 19... axb6 {[%clk 0:24:03]} 20. c4 {[%clk 0:22:09]} 20... Ne4 {[%clk
0:20:04]} 21. Rxe3 {[%clk 0:20:56]} 21... Bd6 {[%clk 0:19:37]} 22. Nxe4 {[%clk
0:17:58]} 22... fxe4 {[%clk 0:18:54]} 23. Ne5 {[%clk 0:18:21]} 23... f5 {[%clk
0:18:18]} 24. g4 {[%clk 0:16:10]} 24... Bxe5 {[%clk 0:15:13]} 25. fxe5 {[%clk
0:14:09]} 25... Nc6 {[%clk 0:15:39]} 26. gxf5 {[%clk 0:14:07]} 26... gxf5 {[%clk
0:15:23]} 27. Rg3+ {[%clk 0:13:37]} 27... Kf7 {[%clk 0:15:33]} 28. Rf1 {[%clk
0:11:04]} 28... Ke6 {[%clk 0:15:40]} 29. Rh3 {[%clk 0:07:44]} 29... Rg8+ {[%clk
0:15:07]} 30. Kh1 {[%clk 0:08:08]} 30... Rc7 {[%clk 0:11:55]} 31. Rh5 {[%clk
0:03:24]} 31... Rf7 {[%clk 0:11:59]} 32. Rg1 {[%clk 0:02:05]} 32... Rxg1+ {[%clk
0:08:42]} 33. Kxg1 {[%clk 0:02:30]} 33... Nxe5 {[%clk 0:05:01]} 34. Bxe5 {[%clk
0:02:52]} 34... Kxe5 {[%clk 0:05:26]} 35. Kf2 {[%clk 0:03:10]} 35... Ra7 {[%clk
0:04:26]} 36. a4 {[%clk 0:03:35]} 36... Rd7 {[%clk 0:04:53]} 37. Rh6 {[%clk
0:03:18]} 37... Rd2+ {[%clk 0:04:41]} 38. Ke1 {[%clk 0:03:43]} 38... e3 {[%clk
0:05:06]} 39. Rxh7 {[%clk 0:03:51]} 39... f4 {[%clk 0:05:09]} 40. Re7+ {[%clk
0:03:33]} 40... Kd4 {[%clk 0:04:24]} 41. Rd7+ {[%clk 0:03:43]} 41... Kc3 {[%clk
0:04:48]} 42. Rf7 {[%clk 0:04:10]} 42... Rxh2 {[%clk 0:04:49]} 0-1

[Variant "Standard"]
[Site "Europe Echecs"]

[Event "Open Cappelle-la-Grande"]
[Date "2025.02.15"]
[White "Bauer, Christian"]
[Black "Iolis, Oleg"]
[WhiteElo "2548"]
[BlackElo "2178"]
[Round "1.1.4"]
[Result "1/2-1/2"]
[TimeControl "40/5400+30:1800+30"]

1. d4 {[%clk 1:30:53]} 1... Nf6 {[%clk 1:30:55]} 2. Nf3 {[%clk 1:30:56]} 2... g6
{[%clk 1:31:19]} 3. Nbd2 {[%clk 1:30:25]} 3... d5 {[%clk 1:31:36]} 4. b4 {[%clk
1:30:40]} 4... a5 {[%clk 1:31:31]} 5. b5 {[%clk 1:31:08]} 5... c5 {[%clk
1:31:23]} 6. dxc5 {[%clk 1:25:48]} 6... Bg7 {[%clk 1:31:41]} 7. Ba3 {[%clk
1:25:01]} 7... O-O {[%clk 1:30:44]} 8. e3 {[%clk 1:24:53]} 8... Ne4 {[%clk
1:24:34]} 9. Nxe4 {[%clk 1:24:42]} 9... Bxa1 {[%clk 1:24:52]} 10. Qxa1 {[%clk
1:24:46]} 10... dxe4 {[%clk 1:25:18]} 11. Nd2 {[%clk 1:18:59]} 11... Be6 {[%clk
1:23:22]} 12. c4 {[%clk 1:16:10]} 12... Nd7 {[%clk 1:21:55]} 13. Nxe4 {[%clk
1:15:08]} 13... f6 {[%clk 1:20:58]} 14. f4 {[%clk 0:57:48]} 14... Rc8 {[%clk
1:15:05]} 15. Qd4 {[%clk 0:55:20]} 15... Qc7 {[%clk 1:03:43]} 16. Be2 {[%clk
0:47:12]} 16... Bf5 {[%clk 1:01:55]} 17. c6 {[%clk 0:34:37]} 17... bxc6 {[%clk
0:58:44]} 18. Bxe7 {[%clk 0:34:39]} 18... Bxe4 {[%clk 0:52:00]} 19. Bxf8 {[%clk
0:26:11]} 19... Kxf8 {[%clk 0:49:33]} 20. Qxe4 {[%clk 0:26:35]} 20... cxb5
{[%clk 0:49:47]} 21. O-O {[%clk 0:22:49]} 21... bxc4 {[%clk 0:49:44]} 22. Qd4
{[%clk 0:20:53]} 22... Kg7 {[%clk 0:44:07]} 23. Bxc4 {[%clk 0:18:08]} 23... Nb6
{[%clk 0:43:52]} 24. Be6 {[%clk 0:16:35]} 24... Rd8 {[%clk 0:42:47]} 25. Qb2
{[%clk 0:14:25]} 25... Qc5 {[%clk 0:41:33]} 26. Qc1 {[%clk 0:14:53]} 26... Qd6
{[%clk 0:41:06]} 27. f5 {[%clk 0:14:07]} 27... Qe5 {[%clk 0:40:33]} 28. Kh1
{[%clk 0:13:30]} 28... Na4 {[%clk 0:36:31]} 29. Qc6 {[%clk 0:12:22]} 29... Nc5
{[%clk 0:35:39]} 30. Bc4 {[%clk 0:09:23]} 30... Ne4 {[%clk 0:28:47]} 31. Qb7+
{[%clk 0:08:04]} 31... Kh6 {[%clk 0:28:50]} 32. fxg6 {[%clk 0:07:52]} 32... hxg6
{[%clk 0:29:05]} 33. Qb5 {[%clk 0:04:57]} 33... Qc3 {[%clk 0:28:00]} 34. Qb3
{[%clk 0:04:14]} 34... Qe5 {[%clk 0:27:14]} 35. Qb5 {[%clk 0:02:21]} 35... Qc3
{[%clk 0:27:25]} 36. Qb3 {[%clk 0:02:43]} 36... Qe5 {[%clk 0:27:51]} 37. Qb5
{[%clk 0:01:06]} 1/2-1/2

[Variant "Standard"]
[Site "Europe Echecs"]

[Event "Open Cappelle-la-Grande"]
[Date "2025.02.15"]
[White "Le Marec, Simon"]
[Black "Iniyan, Pa"]
[WhiteElo "2172"]
[BlackElo "2523"]
[Round "1.1.5"]
[Result "0-1"]
[TimeControl "40/5400+30:1800+30"]

1. d4 {[%clk 1:19:08]} 1... Nf6 {[%clk 1:30:46]} 2. c4 {[%clk 1:19:31]} 2... e6
{[%clk 1:31:00]} 3. Nc3 {[%clk 1:19:55]} 3... Bb4 {[%clk 1:31:23]} 4. e3 {[%clk
1:20:19]} 4... O-O {[%clk 1:31:45]} 5. Bd3 {[%clk 1:20:43]} 5... d5 {[%clk
1:32:05]} 6. a3 {[%clk 1:21:06]} 6... Bxc3+ {[%clk 1:32:08]} 7. bxc3 {[%clk
1:21:28]} 7... dxc4 {[%clk 1:32:35]} 8. Bxc4 {[%clk 1:21:50]} 8... c5 {[%clk
1:33:01]} 9. Ne2 {[%clk 1:22:12]} 9... Qc7 {[%clk 1:33:07]} 10. Bd3 {[%clk
1:22:34]} 10... Nc6 {[%clk 1:31:59]} 11. f4 {[%clk 1:22:57]} 11... b6 {[%clk
1:31:04]} 12. O-O {[%clk 1:20:25]} 12... Bb7 {[%clk 1:31:26]} 13. Ng3 {[%clk
1:20:24]} 13... Ne7 {[%clk 1:31:49]} 14. e4 {[%clk 1:14:32]} 14... cxd4 {[%clk
1:31:59]} 15. cxd4 {[%clk 1:14:58]} 15... Qc3 {[%clk 1:32:13]} 16. Ra2 {[%clk
1:15:24]} 16... Qxd4+ {[%clk 1:01:27]} 17. Kh1 {[%clk 1:15:48]} 17... Rad8
{[%clk 1:01:50]} 18. Rd2 {[%clk 1:16:11]} 18... Qe3 {[%clk 1:02:16]} 19. Rf3
{[%clk 1:07:34]} 19... Qc5 {[%clk 0:59:28]} 20. h3 {[%clk 0:57:31]} 20... Ng6
{[%clk 0:57:30]} 21. Bb2 {[%clk 0:47:22]} 21... Nh5 {[%clk 0:09:34]} 22. f5
{[%clk 0:23:28]} 22... exf5 {[%clk 0:09:58]} 23. Nxh5 {[%clk 0:22:11]} 23...
fxe4 {[%clk 0:10:15]} 24. Rg3 {[%clk 0:18:34]} 24... Rxd3 {[%clk 0:10:02]} 25.
Rdxd3 {[%clk 0:16:52]} 25... exd3 {[%clk 0:10:27]} 26. Bxg7 {[%clk 0:17:15]}
26... Rc8 {[%clk 0:04:19]} 27. Rxd3 {[%clk 0:13:40]} 27... Bxg2+ {[%clk
0:04:29]} 28. Kxg2 {[%clk 0:13:22]} 28... Qxh5 {[%clk 0:04:52]} 29. Qxh5 {[%clk
0:11:02]} 29... Nf4+ {[%clk 0:05:18]} 30. Kf3 {[%clk 0:11:26]} 30... Nxh5 {[%clk
0:05:44]} 31. Be5 {[%clk 0:11:49]} 31... f6 {[%clk 0:05:49]} 32. Bb2 {[%clk
0:11:32]} 32... Rc2 {[%clk 0:06:08]} 33. Kg4 {[%clk 0:10:53]} 33... Rxb2 {[%clk
0:04:29]} 34. Kxh5 {[%clk 0:11:18]} 34... a5 {[%clk 0:04:24]} 35. Kh6 {[%clk
0:08:48]} 35... a4 {[%clk 0:04:44]} 36. h4 {[%clk 0:09:08]} 36... Rb3 {[%clk
0:04:40]} 37. Rd6 {[%clk 0:08:53]} 37... b5 {[%clk 0:03:53]} 38. Rb6 {[%clk
0:09:00]} 38... Kf7 {[%clk 0:01:36]} 39. h5 {[%clk 0:09:11]} 39... Ke7 {[%clk
0:00:47]} 40. Kxh7 {[%clk 0:09:24]} 40... f5 {[%clk 0:01:11]} 41. Kg6 {[%clk
0:09:47]} 41... f4 {[%clk 0:30:29]} 42. Kg5 {[%clk 0:36:37]} 42... f3 {[%clk
0:29:28]} 43. Rf6 {[%clk 0:36:54]} 43... Rxa3 {[%clk 0:26:31]} 44. h6 {[%clk
0:37:19]} 44... Ra1 {[%clk 0:26:57]} 45. Rxf3 {[%clk 0:37:03]} 45... Rg1+ {[%clk
0:27:21]} 46. Kf5 {[%clk 0:37:11]} 46... Rh1 {[%clk 0:27:44]} 47. Kg6 {[%clk
0:34:46]} 47... b4 {[%clk 0:28:07]} 48. Rf4 {[%clk 0:34:33]} 48... a3 {[%clk
0:24:06]} 49. Rxb4 {[%clk 0:34:14]} 49... Rg1+ {[%clk 0:24:16]} 50. Kh7 {[%clk
0:33:10]} 50... a2 {[%clk 0:24:41]} 51. Rb7+ {[%clk 0:33:37]} 51... Kf6 {[%clk
0:24:58]} 52. Rb6+ {[%clk 0:33:21]} 52... Kf5 {[%clk 0:25:23]} 53. Rb5+ {[%clk
0:33:42]} 53... Kg4 {[%clk 0:25:39]} 0-1

[Variant "Standard"]
[Site "Europe Echecs"]

[Event "Open Cappelle-la-Grande"]
[Date "2025.02.15"]
[White "Raja Rithvik R"]
[Black "Aravindhan, Achyuth"]
[WhiteElo "2522"]
[BlackElo "2169"]
[Round "1.1.6"]
[Result "1-0"]
[TimeControl "40/5400+30:1800+30"]

1. d4 {[%clk 1:28:30]} 1... Nf6 {[%clk 1:30:55]} 2. c4 {[%clk 1:28:38]} 2... g6
{[%clk 1:31:20]} 3. Nc3 {[%clk 1:29:01]} 3... Bg7 {[%clk 1:31:45]} 4. e4 {[%clk
1:29:20]} 4... d6 {[%clk 1:32:12]} 5. h3 {[%clk 1:29:43]} 5... O-O {[%clk
1:32:35]} 6. Be3 {[%clk 1:30:09]} 6... Nbd7 {[%clk 1:33:00]} 7. Nf3 {[%clk
1:30:23]} 7... e5 {[%clk 1:33:17]} 8. d5 {[%clk 1:30:39]} 8... Nc5 {[%clk
1:33:11]} 9. Nd2 {[%clk 1:31:05]} 9... a5 {[%clk 1:33:36]} 10. g4 {[%clk
1:30:12]} 10... c6 {[%clk 1:33:45]} 11. Be2 {[%clk 1:30:27]} 11... a4 {[%clk
1:33:55]} 12. a3 {[%clk 1:30:35]} 12... cxd5 {[%clk 1:34:18]} 13. cxd5 {[%clk
1:29:52]} 13... Bd7 {[%clk 1:34:21]} 14. h4 {[%clk 1:24:41]} 14... b5 {[%clk
1:32:31]} 15. h5 {[%clk 1:18:09]} 15... h6 {[%clk 1:25:24]} 16. g5 {[%clk
1:00:39]} 16... Nh7 {[%clk 1:05:57]} 17. gxh6 {[%clk 0:58:24]} 17... Bf6 {[%clk
1:06:12]} 18. Qc2 {[%clk 0:38:12]} 18... Bg5 {[%clk 0:50:13]} 19. Bxc5 {[%clk
0:36:42]} 19... dxc5 {[%clk 0:50:33]} 20. Bxb5 {[%clk 0:37:01]} 20... Bxb5
{[%clk 0:44:28]} 21. Nxb5 {[%clk 0:37:01]} 21... Qd7 {[%clk 0:44:50]} 22. Nc3
{[%clk 0:34:44]} 22... Qg4 {[%clk 0:45:00]} 23. Qd3 {[%clk 0:29:54]} 23... Rab8
{[%clk 0:43:07]} 24. Nc4 {[%clk 0:25:18]} 24... Bf4 {[%clk 0:37:58]} 25. hxg6
{[%clk 0:21:45]} 25... fxg6 {[%clk 0:37:49]} 26. Qh3 {[%clk 0:22:12]} 26... Qg5
{[%clk 0:33:40]} 27. Ke2 {[%clk 0:21:17]} 27... Kh8 {[%clk 0:28:44]} 28. Qh4
{[%clk 0:20:21]} 28... Qxh4 {[%clk 0:26:55]} 29. Rxh4 {[%clk 0:20:46]} 29... Bg5
{[%clk 0:27:11]} 30. Rg4 {[%clk 0:19:04]} 30... Rf4 {[%clk 0:26:49]} 31. Rxf4
{[%clk 0:18:07]} 31... Bxf4 {[%clk 0:27:08]} 32. Nxa4 {[%clk 0:18:19]} 1-0

[Variant "Standard"]
[Site "Europe Echecs"]

[Event "Open Cappelle-la-Grande"]
[Date "2025.02.15"]
[White "Mannion, Stephen R"]
[Black "Boyer, Mahel"]
[WhiteElo "2167"]
[BlackElo "2509"]
[Round "1.1.7"]
[Result "0-1"]
[TimeControl "40/5400+30:1800+30"]

1. e4 {[%clk 1:30:59]} 1... g6 {[%clk 1:30:46]} 2. d4 {[%clk 1:31:21]} 2... Bg7
{[%clk 1:31:13]} 3. Nc3 {[%clk 1:31:41]} 3... d6 {[%clk 1:31:38]} 4. f4 {[%clk
1:31:39]} 4... Nf6 {[%clk 1:32:03]} 5. Nf3 {[%clk 1:31:56]} 5... O-O {[%clk
1:32:22]} 6. Bd3 {[%clk 1:32:06]} 6... Nc6 {[%clk 1:32:47]} 7. e5 {[%clk
1:32:03]} 7... dxe5 {[%clk 1:33:13]} 8. dxe5 {[%clk 1:32:21]} 8... Nd5 {[%clk
1:33:39]} 9. Bd2 {[%clk 1:32:24]} 9... Ndb4 {[%clk 1:16:26]} 10. Be4 {[%clk
1:29:23]} 10... f5 {[%clk 1:15:11]} 11. Bxc6 {[%clk 1:27:35]} 11... Nxc6 {[%clk
1:15:35]} 12. Be3 {[%clk 1:26:53]} 12... e6 {[%clk 1:12:13]} 13. Qe2 {[%clk
1:20:59]} 13... b6 {[%clk 1:12:18]} 14. O-O {[%clk 1:15:50]} 14... Qe7 {[%clk
1:11:09]} 15. Rfd1 {[%clk 1:11:30]} 15... Bb7 {[%clk 1:11:10]} 16. a3 {[%clk
1:08:25]} 16... h6 {[%clk 1:11:16]} 17. Rd2 {[%clk 1:08:17]} 17... Rfd8 {[%clk
1:11:23]} 18. Rad1 {[%clk 1:08:09]} 18... Rxd2 {[%clk 1:10:38]} 19. Rxd2 {[%clk
1:08:21]} 19... Rd8 {[%clk 1:08:29]} 20. Rxd8+ {[%clk 0:30:43]} 20... Nxd8
{[%clk 1:07:04]} 21. Kf2 {[%clk 0:29:49]} 21... Nf7 {[%clk 1:07:15]} 22. g3
{[%clk 0:21:01]} 22... g5 {[%clk 1:04:20]} 23. b4 {[%clk 0:20:13]} 23... Qe8
{[%clk 0:56:25]} 24. Nd4 {[%clk 0:17:20]} 24... gxf4 {[%clk 0:50:58]} 25. gxf4
{[%clk 0:17:33]} 25... Nd8 {[%clk 0:49:57]} 26. Ke1 {[%clk 0:16:43]} 26... Bf8
{[%clk 0:49:17]} 27. Qf2 {[%clk 0:13:52]} 27... Kh7 {[%clk 0:46:55]} 28. Qg3
{[%clk 0:10:26]} 28... Be7 {[%clk 0:45:05]} 29. Kd2 {[%clk 0:09:07]} 29... Qd7
{[%clk 0:45:06]} 30. Ke1 {[%clk 0:07:02]} 30... Nf7 {[%clk 0:40:32]} 31. Bf2
{[%clk 0:06:37]} 31... Nh8 {[%clk 0:39:10]} 32. Qd3 {[%clk 0:05:29]} 32... Ng6
{[%clk 0:39:26]} 33. Nde2 {[%clk 0:05:38]} 33... Qc6 {[%clk 0:39:37]} 34. Kd2
{[%clk 0:05:14]} 34... a5 {[%clk 0:39:11]} 35. bxa5 {[%clk 0:03:35]} 35... bxa5
{[%clk 0:39:38]} 36. Qb5 {[%clk 0:03:21]} 36... Bxa3 {[%clk 0:35:49]} 37. Qxa5
{[%clk 0:03:50]} 37... Qd7+ {[%clk 0:35:56]} 38. Ke1 {[%clk 0:04:11]} 38... Be7
{[%clk 0:36:21]} 39. Qb5 {[%clk 0:04:01]} 39... Bc6 {[%clk 0:36:31]} 40. Qd3
{[%clk 0:04:03]} 40... Qc8 {[%clk 0:33:08]} 41. Qc4 {[%clk 0:03:19]} 41... Bd7
{[%clk 0:33:15]} 42. Bc5 {[%clk 0:00:32]} 42... Bh4+ {[%clk 0:33:34]} 43. Kd2
{[%clk 0:29:54]} 43... Qa8 {[%clk 1:03:34]} 44. Be3 {[%clk 0:26:47]} 44... Bd8
{[%clk 1:02:16]} 45. Nd4 {[%clk 0:22:02]} 45... Qg2+ {[%clk 0:59:14]} 46. Kc1
{[%clk 0:13:04]} 46... Nf8 {[%clk 0:58:02]} 47. Qe2 {[%clk 0:12:24]} 47... Qh1+
{[%clk 0:57:35]} 48. Kd2 {[%clk 0:12:50]} 48... Be7 {[%clk 0:57:21]} 49. Qf2
{[%clk 0:06:59]} 49... Bb4 {[%clk 0:55:57]} 50. Qg1 {[%clk 0:04:28]} 50... Qd5
{[%clk 0:52:08]} 51. Kd3 {[%clk 0:04:52]} 51... Qa5 {[%clk 0:52:05]} 52. Nde2
{[%clk 0:03:57]} 52... Qa6+ {[%clk 0:52:08]} 53. Kd2 {[%clk 0:04:24]} 53... Bb5
{[%clk 0:52:12]} 54. Bc5 {[%clk 0:04:43]} 54... Bxc3+ {[%clk 0:49:39]} 55. Nxc3
{[%clk 0:05:09]} 55... Ng6 {[%clk 0:50:08]} 56. Qb1 {[%clk 0:02:43]} 56... c6
{[%clk 0:49:14]} 57. Be3 {[%clk 0:03:02]} 57... Qb7 {[%clk 0:48:47]} 58. Qb4
{[%clk 0:03:14]} 58... Nh4 {[%clk 0:48:44]} 59. Kc1 {[%clk 0:03:29]} 59... Nf3
{[%clk 0:48:39]} 60. Nxb5 {[%clk 0:03:17]} 60... cxb5 {[%clk 0:49:03]} 61. h3
{[%clk 0:03:03]} 61... Kg6 {[%clk 0:45:34]} 62. Qf8 {[%clk 0:03:13]} 62... Qd7
{[%clk 0:45:11]} 63. Kb2 {[%clk 0:02:51]} 63... Kh5 {[%clk 0:45:09]} 64. Qd6
{[%clk 0:03:13]} 64... Qc8 {[%clk 0:44:58]} 65. Qd3 {[%clk 0:02:31]} 65... Qc6
{[%clk 0:44:39]} 66. Bf2 {[%clk 0:02:34]} 66... Kg6 {[%clk 0:42:27]} 67. Qe3
{[%clk 0:02:16]} 67... Qe4 {[%clk 0:41:53]} 68. Qxe4 {[%clk 0:01:50]} 68... fxe4
{[%clk 0:42:21]} 69. Kc3 {[%clk 0:02:08]} 69... Kf5 {[%clk 0:42:47]} 70. Be3
{[%clk 0:02:07]} 70... Ne1 {[%clk 0:43:14]} 71. Bd2 {[%clk 0:01:32]} 71... Ng2
{[%clk 0:43:27]} 72. Kd4 {[%clk 0:01:57]} 72... Nxf4 {[%clk 0:43:52]} 73. Kc5
{[%clk 0:02:07]} 73... Ng2 {[%clk 0:44:06]} 74. Kd4 {[%clk 0:02:05]} 74... e3
{[%clk 0:44:14]} 0-1

[Variant "Standard"]
[Site "Europe Echecs"]